fUST/lending_fUST_20250929
["ID","MTS","AMOUNT","RATE_DAILY","PERIOD"]
[388352528,1759115456440,-480.0,0.00027945,7]
[388352530,1759115456450,-480.0,0.00027945,7]
[388352532,1759115456459,-480.0,0.00027945,7]
[388352533,1759115456468,-930.27,0.00027945,7]
[388352534,1759115456478,-767.64,0.00027945,7]
[388352535,1759115456486,-480.0,0.00027945,7]
[388352536,1759115456495,-125.74443499,0.00027945,7]
[388352552,1759115456951,-1692.66556501,0.00027945,7]
[388352553,1759115456960,-677.72,0.00027945,7]
[388352555,1759115456970,-200.0,0.00027945,7]
[388352557,1759115456979,-480.0,0.00027945,7]
[388352559,1759115456988,-480.0,0.00027945,7]
[388352561,1759115456998,-480.0,0.00027945,7]
[388352563,1759115457008,-782.75,0.00027945,7]
[388352565,1759115457017,-689.47,0.00027945,7]
[388352567,1759115457027,-777.19,0.00027945,7]
[388352569,1759115457037,-504.37,0.00027945,7]
[388352571,1759115457047,-949.01,0.00027945,7]
[388352573,1759115457056,-911.81,0.00027945,7]
[388352575,1759115457065,-480.0,0.00027945,7]
[388352577,1759115457074,-480.0,0.00027945,7]
[388352579,1759115457083,-516.21,0.00027945,7]
[388352581,1759115457092,-480.0,0.00027945,7]
[388352583,1759115457101,-480.0,0.00027945,7]
[388352585,1759115457111,-934.94,0.00027945,7]
[388352587,1759115457120,-504.72,0.00027945,7]
[388352589,1759115457129,-639.65,0.00027945,7]
[388352591,1759115457138,-480.0,0.00027945,7]
[388352593,1759115457147,-791.03,0.00027945,7]
[388352595,1759115457156,-804.07,0.00027945,7]
[388352597,1759115457166,-1757.75,0.00027945,7]
[388352599,1759115457175,-750.05,0.00027945,7]
[388352601,1759115457184,-2425.39,0.00027945,7]
[388352603,1759115457194,-480.0,0.00027945,7]
[388352605,1759115457203,-480.0,0.00027945,7]
[388352606,1759115457212,-480.0,0.00027945,7]
[388352608,1759115457221,-480.0,0.00027945,7]
[388352610,1759115457231,-480.0,0.00027945,7]
[388352612,1759115457239,-1576.64,0.00027945,7]
[388352614,1759115457249,-658.7,0.00027945,7]
[388352616,1759115457259,-881.36,0.00027945,7]
[388352618,1759115457268,-633.06,0.00027945,7]
[388352620,1759115457277,-480.0,0.00027945,7]
[388352622,1759115457287,-480.0,0.00027945,7]
[388352624,1759115457296,-480.0,0.00027945,7]
[388352626,1759115457305,-480.0,0.00027945,7]
[388352628,1759115457315,-474.14777006,0.00027945,7]
[388352630,1759115457325,-728.61,0.00027945,7]
[388352632,1759115457334,-480.0,0.00027945,7]
[388352634,1759115457343,-1347.15,0.00027945,7]
[388352636,1759115457352,-695.61,0.00027945,7]
[388352638,1759115457361,-480.0,0.00027945,7]
[388352639,1759115457370,-480.0,0.00027945,7]
[388352641,1759115457379,-559.02,0.00027945,7]
[388352643,1759115457388,-1397.73,0.00027945,7]
[388352645,1759115457397,-2696.85,0.00027945,7]
[388352647,1759115457407,-480.0,0.00027945,7]
[388352649,1759115457415,-500.0,0.00027945,7]
[388352651,1759115457425,-480.0,0.00027945,7]
[388352653,1759115457434,-480.0,0.00027945,7]
[388352655,1759115457443,-480.0,0.00027945,7]
[388352657,1759115457453,-789.67,0.00027945,7]
[388352659,1759115457462,-480.0,0.00027945,7]
[388352661,1759115457471,-910.44,0.00027945,7]
[388352663,1759115457480,-1391.72,0.00027945,7]
[388352665,1759115457490,-756.94,0.00027945,7]
[388352667,1759115457499,-353.36632249,0.00027945,7]
[388352668,1759115457508,-480.0,0.00027945,7]
[388352671,1759115457518,-480.0,0.00027945,7]
[388352672,1759115457528,-795.3,0.00027945,7]
[388352674,1759115457537,-753.79,0.00027945,7]
[388352676,1759115457546,-480.0,0.00027945,7]
[388352678,1759115457555,-760.36,0.00027945,7]
[388352680,1759115457565,-714.24,0.00027945,7]
[388352682,1759115457574,-688.82,0.00027945,7]
[388352684,1759115457583,-480.0,0.00027945,7]
[388352686,1759115457593,-617.75329631,0.00027945,7]
[388352688,1759115457604,-480.0,0.00027945,7]
[388352690,1759115457613,-718.29,0.00027945,7]
[388352692,1759115457622,-480.0,0.00027945,7]
[388352694,1759115457633,-664.19,0.00027945,7]
[388352696,1759115457643,-981.27,0.00027945,7]
[388352698,1759115457653,-480.0,0.00027945,7]
[388352700,1759115457662,-500.0,0.00027945,7]
[388352702,1759115457671,-507.19,0.00027945,7]
[388352704,1759115457680,-480.0,0.00027945,7]
[388352706,1759115457690,-2725.91,0.00027945,7]
[388352708,1759115457699,-480.0,0.00027945,7]
[388352710,1759115457708,-480.0,0.00027945,7]
[388352712,1759115457717,-1171.95,0.00027945,7]
[388352714,1759115457726,-480.0,0.00027945,7]
[388352715,1759115457735,-480.0,0.00027945,7]
[388352717,1759115457745,-480.0,0.00027945,7]
[388352719,1759115457755,-480.0,0.00027945,7]
[388352721,1759115457764,-606.89,0.00027945,7]
[388352723,1759115457774,-735.72,0.00027945,7]
[388352725,1759115457783,-480.0,0.00027945,7]
[388352727,1759115457793,-4886.56,0.00027945,7]
[388352729,1759115457802,-480.0,0.00027945,7]
[388352731,1759115457811,-868.24,0.00027945,7]
[388352733,1759115457821,-816.94,0.00027945,7]
[388352735,1759115457833,-480.0,0.00027945,7]
[388352737,1759115457842,-480.0,0.00027945,7]
[388352739,1759115457851,-480.0,0.00027945,7]
[388352740,1759115457860,-480.0,0.00027945,7]
[388352742,1759115457871,-848.04,0.00027945,7]
[388352744,1759115457881,-480.0,0.00027945,7]
[388352746,1759115457890,-480.0,0.00027945,7]
[388352748,1759115457900,-480.0,0.00027945,7]
[388352750,1759115457910,-480.0,0.00027945,7]
[388352752,1759115457919,-492.69480604,0.00027945,7]
[388352754,1759115457928,-792.97,0.00027945,7]
[388352756,1759115457937,-759.44,0.00027945,7]
[388352758,1759115457947,-480.0,0.00027945,7]
[388352760,1759115457960,-956.26,0.00027945,7]
[388352762,1759115457969,-2090.4,0.00027945,7]
[388352764,1759115457979,-1085.12,0.00027945,7]
[388352766,1759115457988,-628.13112742,0.00027945,7]
[388352848,1759115458788,-350.0,0.00026845,2]
[388353605,1759116042416,5000.01,0.00024478,2]
[388353655,1759116525481,5000.0,0.00019063,7]
[388353656,1759116525505,4936.50131644,0.00019063,7]
[388353674,1759116631701,-300.0,0.00025466,2]
[388353675,1759116631711,-300.0,0.00025466,2]
[388353676,1759116631721,-300.0,0.00025466,2]
[388353677,1759116631730,-1200.0,0.00025467,2]
[388353678,1759116631740,-78.848494,0.00025476,2]
[388353714,1759116637836,-449.68474497,0.00025476,2]
[388353715,1759116637891,-671.46676103,0.00025476,2]
[388353716,1759116637901,-160.0,0.00025476,2]
[388353717,1759116637910,-160.0,0.00025477,2]
[388353718,1759116637920,-500.0,0.00025478,2]
[388353719,1759116637929,-500.0,0.00025478,2]
[388353720,1759116637938,-500.0,0.00025478,2]
[388353721,1759116637947,-500.0,0.00025478,2]
[388353722,1759116637957,-417.56666197,0.00025478,2]
[388353723,1759116637966,-500.0,0.00025478,2]
[388353724,1759116637975,-500.0,0.00025478,2]
[388353725,1759116637985,-500.0,0.00025478,2]
[388353726,1759116637993,-500.0,0.00025478,2]
[388353727,1759116638002,-500.0,0.00025478,2]
[388353728,1759116638011,-500.0,0.00025478,2]
[388353729,1759116638020,-500.0,0.00025478,2]
[388353730,1759116638030,-500.0,0.00025478,2]
[388353731,1759116638041,-500.0,0.00025478,2]
[388353732,1759116638050,-500.0,0.00025478,2]
[388353733,1759116638059,-500.0,0.00025478,2]
[388353734,1759116638069,-500.0,0.00025478,2]
[388353735,1759116638078,-500.0,0.00025478,2]
[388353736,1759116638087,-500.0,0.00025478,2]
[388353737,1759116638096,-500.0,0.00025478,2]
[388353738,1759116638105,-600.0,0.00025478,2]
[388353739,1759116638114,-500.0,0.00025478,2]
[388353740,1759116638124,-500.0,0.00025478,2]
[388353741,1759116638133,-500.0,0.00025478,2]
[388353742,1759116638142,-515.47198335,0.00025478,2]
[388353743,1759116638151,-307.23638594,0.00025478,2]
[388353744,1759116638161,-174.45038507,0.00025478,2]
[388353745,1759116638171,-500.0,0.00025478,2]
[388353746,1759116638181,-512.46594106,0.00025478,2]
[388353747,1759116638190,-69631.40076891,0.00025479,2]
[388353836,1759116641215,-2589.07981561,0.00025479,2]
[388354290,1759116662541,158.04001994,0.0003378,120]
[388354328,1759116946292,5063.50868356,0.00024423,2]
[388354329,1759116946316,10000.01,0.00024423,2]
[388354330,1759116946338,4936.50131644,0.00024423,2]
[388354361,1759117159113,5000.0,0.00025205,2]
[388354362,1759117168011,63.50868356,0.00025205,2]
[388354363,1759117168036,171.02081393,0.00025205,2]
[388354365,1759117176541,5000.0,0.00025205,2]
[388354368,1759117184378,4828.98918607,0.00025205,2]
[388354369,1759117184402,171.01081393,0.00025205,2]
[388354374,1759117234769,300.0,0.000252,2]
[388354375,1759117265126,150.0,0.00025204,2]
[388354380,1759117404008,5000.0,0.00025205,2]
[388354384,1759117426765,5000.0,0.00025205,2]
[388354385,1759117450655,5000.0,0.00025205,2]
[388354387,1759117473533,0.01,0.00025205,2]
[388354388,1759117473556,4999.99,0.00025205,2]
[388354391,1759117496097,5000.0,0.00025205,2]
[388354392,1759117518800,5000.0,0.00025205,2]
[388354393,1759117527431,471.02530758,0.00025205,2]
[388354394,1759117535589,300.0,0.000252,2]
[388354395,1759117543178,4228.98469242,0.00025205,2]
[388354396,1759117543204,771.01530758,0.00025205,2]
[388354397,1759117566700,5000.0,0.00025205,2]
[388354404,1759117590709,4228.99469242,0.00025205,2]
[388354405,1759117590731,771.00530758,0.00025205,2]
[388354406,1759117595564,170.0,0.00025204,2]
[388354412,1759117613555,5000.0,0.00025205,2]
[388354413,1759117637899,4059.00469242,0.00025205,2]
[388354414,1759117637923,940.99530758,0.00025205,2]
[388354415,1759117645915,4188.48667223,0.00025205,2]
[388354417,1759117662728,4870.52802019,0.00025205,2]
[388354418,1759117662751,129.47197981,0.00025205,2]
[388354429,1759117679340,2845.94885733,0.00025205,2]
[388354433,1759117687336,1106.5881422,0.00025205,2]
[388354453,1759117835284,-1240.22057419,0.00025278,2]
[388354454,1759117835294,-299.4,0.00025364,2]
[388354455,1759117835303,-1060.37942581,0.00025367,2]
[388354456,1759117835315,-139.62057419,0.00025367,2]
[388354457,1759117835324,-250.8,0.00025369,3]
[388354458,1759117835333,-1200.0,0.00025377,2]
[388354459,1759117835343,-300.0,0.00025377,2]
[388354460,1759117835353,-500.0,0.00025378,2]
[388354461,1759117835362,-359.57942581,0.00025378,2]
[388354477,1759117837894,-140.42057419,0.00025378,2]
[388354478,1759117837904,-262.29666338,0.00025378,2]
[388354479,1759117837914,-500.0,0.00025378,2]
[388354480,1759117837924,-500.0,0.00025378,2]
[388354481,1759117837933,-500.0,0.00025378,2]
[388354482,1759117837943,-500.0,0.00025378,2]
[388354483,1759117837952,-500.0,0.00025378,2]
[388354484,1759117837962,-500.0,0.00025378,2]
[388354485,1759117837971,-500.0,0.00025378,2]
[388354486,1759117837981,-500.0,0.00025378,2]
[388354487,1759117837991,-500.0,0.00025378,2]
[388354488,1759117838000,-500.0,0.00025378,2]
[388354489,1759117838009,-183.60766437,0.00025378,2]
[388354490,1759117838019,-500.0,0.00025378,2]
[388354492,1759117838033,-500.0,0.00025378,2]
[388354494,1759117838043,-500.0,0.00025378,2]
[388354496,1759117838053,-500.0,0.00025378,2]
[388354497,1759117838063,-500.0,0.00025378,2]
[388354499,1759117838073,-245.60280134,0.00025378,2]
[388354501,1759117838083,-500.0,0.00025378,2]
[388354503,1759117838094,-500.0,0.00025378,2]
[388354505,1759117838104,-500.0,0.00025378,2]
[388354507,1759117838115,-500.0,0.00025378,2]
[388354509,1759117838125,-500.0,0.00025378,2]
[388354511,1759117838134,-1224.74006966,0.00025379,2]
[388354513,1759117838146,-2015.95027404,0.00025379,2]
[388354515,1759117838157,-370000.0,0.00025379,2]
[388354517,1759117838167,-485.72925656,0.00025579,2]
[388354518,1759117838177,-12414.0244408,0.00025679,2]
[388354520,1759117838187,-296.9209673,0.00025926,2]
[388354522,1759117838197,-586.6426705,0.00025926,2]
[388354524,1759117838207,-507.4512108,0.00025926,2]
[388354526,1759117838216,-162.3399399,0.00025926,2]
[388354528,1759117838226,-1184.4440954,0.00025926,2]
[388354530,1759117838236,-586.6426705,0.00025926,2]
[388354532,1759117838246,-648.13450541,0.00026,2]
[388354534,1759117838255,-184.02515209,0.00026,14]
[388354536,1759117838266,-584.6894659,0.00026,2]
[388354538,1759117838276,-485.72925653,0.00026009,2]
[388354539,1759117838285,-192.32559287,0.0002616,2]
[388354541,1759117838294,-1240.22057417,0.00026367,2]
[388354543,1759117838304,-485.72925653,0.00026438,2]
[388354545,1759117838314,-2015.95027402,0.00026612,2]
[388354547,1759117838323,-238.38,0.00026968,2]
[388354549,1759117838334,-162.54067739,0.00026972,5]
[388354551,1759117838345,-253.579,0.00027113,15]
[388354553,1759117838354,-151.0,0.000272,19]
[388354555,1759117838365,-1000.0,0.00027297,2]
[388354557,1759117838375,-161.90070238,0.0002739,7]
[388354559,1759117838387,-480.0,0.00027397,7]
[388354560,1759117838397,-693.56,0.00027397,7]
[388354562,1759117838407,-480.0,0.00027397,7]
[388354564,1759117838417,-507.86,0.00027397,7]
[388354566,1759117838427,-560.8,0.00027397,7]
[388354568,1759117838437,-481.295927,0.00027397,7]
[388354570,1759117838447,-480.0,0.00027397,7]
[388354572,1759117838456,-480.0,0.00027397,7]
[388354574,1759117838466,-480.0,0.00027397,7]
[388354576,1759117838476,-632.18,0.00027397,7]
[388354578,1759117838486,-480.0,0.00027397,7]
[388354580,1759117838495,-480.0,0.00027397,7]
[388354582,1759117838505,-480.0,0.00027397,7]
[388354584,1759117838514,-480.0,0.00027397,7]
[388354586,1759117838524,-684.09,0.00027397,7]
[388354588,1759117838533,-480.0,0.00027397,7]
[388354590,1759117838542,-480.0,0.00027397,7]
[388354592,1759117838553,-480.0,0.00027397,7]
[388354593,1759117838562,-494.2,0.00027397,7]
[388354595,1759117838572,-480.0,0.00027397,7]
[388354597,1759117838582,-480.0,0.00027397,7]
[388354599,1759117838591,-480.0,0.00027397,7]
[388354601,1759117838601,-617.21,0.00027397,7]
[388354603,1759117838611,-480.0,0.00027397,7]
[388354605,1759117838620,-480.0,0.00027397,7]
[388354607,1759117838629,-482.51236051,0.00027397,7]
[388354609,1759117838638,-480.0,0.00027397,7]
[388354611,1759117838648,-480.0,0.00027397,7]
[388354613,1759117838656,-480.0,0.00027397,7]
[388354614,1759117838666,-822.1,0.00027397,7]
[388354616,1759117838675,-515.32,0.00027397,7]
[388354618,1759117838685,-480.0,0.00027397,7]
[388354620,1759117838694,-480.0,0.00027397,7]
[388354622,1759117838704,-480.0,0.00027397,7]
[388354624,1759117838714,-480.0,0.00027397,7]
[388354626,1759117838723,-480.0,0.00027397,7]
[388354628,1759117838733,-480.0,0.00027397,7]
[388354630,1759117838742,-480.0,0.00027397,7]
[388354632,1759117838753,-480.0,0.00027397,7]
[388354634,1759117838762,-480.0,0.00027397,7]
[388354636,1759117838772,-480.0,0.00027397,7]
[388354638,1759117838781,-480.0,0.00027397,7]
[388354639,1759117838791,-480.0,0.00027397,7]
[388354641,1759117838800,-480.0,0.00027397,7]
[388354643,1759117838809,-480.0,0.00027397,7]
[388354645,1759117838819,-480.0,0.00027397,7]
[388354647,1759117838828,-480.0,0.00027397,7]
[388354649,1759117838837,-480.0,0.00027397,7]
[388354651,1759117838846,-480.0,0.00027397,7]
[388354653,1759117838856,-480.0,0.00027397,7]
[388354655,1759117838866,-761.75,0.00027397,7]
[388354657,1759117838875,-480.0,0.00027397,7]
[388354659,1759117838885,-500.0,0.00027397,7]
[388354661,1759117838894,-480.0,0.00027397,7]
[388354662,1759117838902,-480.0,0.00027397,7]
[388354663,1759117838909,-480.0,0.00027397,7]
[388354664,1759117838917,-480.0,0.00027397,7]
[388354665,1759117838925,-481.66979238,0.00027397,7]
[388354666,1759117838933,-480.0,0.00027397,7]
[388354667,1759117838941,-482.03596892,0.00027397,7]
[388354668,1759117838950,-151.0,0.00027397,7]
[388354669,1759117838958,-151.0,0.00027397,7]
[388354670,1759117838967,-480.0,0.00027397,7]
[388354671,1759117838976,-151.0,0.00027397,7]
[388354672,1759117838986,-171.374504,0.00027397,7]
[388354673,1759117838996,-480.0,0.00027397,7]
[388354674,1759117839005,-480.0,0.00027397,7]
[388354675,1759117839015,-480.0,0.00027397,7]
[388354676,1759117839028,-480.0,0.00027397,7]
[388354677,1759117839039,-498.31525724,0.00027397,7]
[388354678,1759117839049,-480.0,0.00027397,7]
[388354679,1759117839059,-480.0,0.00027397,7]
[388354680,1759117839071,-480.0,0.00027397,7]
[388354681,1759117839081,-480.0,0.00027397,7]
[388354682,1759117839091,-151.0,0.00027397,7]
[388354683,1759117839101,-151.0,0.00027397,7]
[388354684,1759117839111,-480.0,0.00027397,7]
[388354685,1759117839122,-480.0,0.00027397,7]
[388354686,1759117839133,-878.41,0.00027397,7]
[388354687,1759117839143,-488.30215019,0.00027397,7]
[388354688,1759117839152,-480.0,0.00027397,7]
[388354689,1759117839163,-480.0,0.00027397,7]
[388354690,1759117839174,-480.0,0.00027397,7]
[388354691,1759117839182,-480.0,0.00027397,7]
[388354692,1759117839192,-480.0,0.00027397,7]
[388354693,1759117839203,-480.0,0.00027397,7]
[388354694,1759117839214,-500.0,0.00027397,7]
[388354695,1759117839223,-500.0,0.00027397,7]
[388354696,1759117839233,-480.0,0.00027397,7]
[388354697,1759117839243,-480.0,0.00027397,7]
[388354698,1759117839253,-480.0,0.00027397,7]
[388354699,1759117839262,-480.0,0.00027397,7]
[388354700,1759117839271,-514.10939813,0.00027397,7]
[388354701,1759117839280,-486.24,0.00027397,7]
[388354702,1759117839290,-655.59,0.00027397,7]
[388354703,1759117839299,-480.63216321,0.00027397,7]
[388354705,1759117839308,-151.0,0.00027397,7]
[388354707,1759117839317,-151.0,0.00027397,7]
[388354708,1759117839327,-153.914599,0.00027397,7]
[388354709,1759117839336,-480.0,0.00027397,7]
[388354710,1759117839345,-480.0,0.00027397,7]
[388354711,1759117839353,-480.0,0.00027397,7]
[388354713,1759117839363,-480.0,0.00027397,7]
[388354715,1759117839372,-486.78100342,0.00027397,7]
[388354716,1759117839382,-480.0,0.00027397,7]
[388354717,1759117839390,-480.0,0.00027397,7]
[388354718,1759117839399,-480.0,0.00027397,7]
[388354719,1759117839408,-480.0,0.00027397,7]
[388354720,1759117839417,-480.0,0.00027397,7]
[388354721,1759117839426,-480.0,0.00027397,7]
[388354722,1759117839435,-480.0,0.00027397,7]
[388354723,1759117839445,-629.92,0.00027397,7]
[388354724,1759117839454,-829.62,0.00027397,7]
[388354725,1759117839464,-480.0,0.00027397,7]
[388354726,1759117839662,-480.0,0.00027397,7]
[388354727,1759117839672,-481.94157728,0.00027397,7]
[388354728,1759117839681,-151.0,0.00027397,7]
[388354729,1759117839690,-151.0,0.00027397,7]
[388354730,1759117839700,-151.0,0.00027397,7]
[388354731,1759117839709,-151.0,0.00027397,7]
[388354732,1759117839718,-151.0,0.00027397,7]
[388354733,1759117839728,-151.0,0.00027397,7]
[388354734,1759117839737,-862.02,0.00027397,7]
[388354735,1759117839747,-151.0,0.00027397,7]
[388354736,1759117839756,-268.258963,0.00027397,7]
[388354737,1759117839765,-480.0,0.00027397,7]
[388354738,1759117839774,-563.48,0.00027397,7]
[388354739,1759117839783,-480.0,0.00027397,7]
[388354740,1759117839792,-480.0,0.00027397,7]
[388354741,1759117839801,-480.0,0.00027397,7]
[388354742,1759117839811,-500.0,0.00027397,7]
[388354743,1759117839820,-480.0,0.00027397,7]
[388354744,1759117839829,-249.11112423,0.00027397,7]
[388354745,1759117839838,-480.0,0.00027397,7]
[388354746,1759117839847,-590.42,0.00027397,7]
[388354747,1759117839857,-480.0,0.00027397,7]
[388354748,1759117839866,-151.0,0.00027397,7]
[388354749,1759117839875,-151.0,0.00027397,7]
[388354750,1759117839887,-151.0,0.00027397,7]
[388354751,1759117839896,-241.6,0.00027397,7]
[388354752,1759117839905,-710.01,0.00027397,7]
[388354753,1759117839914,-550.87024388,0.00027397,7]
[388354754,1759117839924,-756.18,0.00027397,7]
[388354755,1759117839933,-480.0,0.00027397,7]
[388354756,1759117839943,-805.99,0.00027397,7]
[388354757,1759117839953,-480.0,0.00027397,7]
[388354758,1759117839962,-504.06509231,0.00027397,7]
[388354759,1759117839972,-480.0,0.00027397,7]
[388354760,1759117839982,-508.14,0.00027397,7]
[388354761,1759117839991,-151.0,0.00027397,7]
[388354762,1759117840000,-151.0,0.00027397,7]
[388354763,1759117840010,-490.97,0.00027397,7]
[388354764,1759117840020,-151.0,0.00027397,7]
[388354765,1759117840034,-480.0,0.00027397,7]
[388354766,1759117840044,-162.879495,0.00027397,7]
[388354767,1759117840053,-1664.46,0.00027397,7]
[388354768,1759117840062,-480.0,0.00027397,7]
[388354769,1759117840073,-483.48290089,0.00027397,7]
[388354770,1759117840082,-151.0,0.00027397,7]
[388354771,1759117840092,-152.877421,0.00027397,7]
[388354772,1759117840102,-480.0,0.00027397,7]
[388354773,1759117840111,-480.0,0.00027397,7]
[388354774,1759117840121,-480.0,0.00027397,7]
[388354775,1759117840131,-480.0,0.00027397,7]
[388354776,1759117840140,-480.0,0.00027397,7]
[388354777,1759117840150,-496.47813687,0.00027397,7]
[388354778,1759117840159,-151.0,0.00027397,7]
[388354779,1759117840168,-151.0,0.00027397,7]
[388354780,1759117840177,-151.0,0.00027397,7]
[388354781,1759117840187,-480.0,0.00027397,7]
[388354782,1759117840196,-151.0,0.00027397,7]
[388354783,1759117840205,-741.59,0.00027397,7]
[388354784,1759117840215,-480.0,0.00027397,7]
[388354785,1759117840224,-151.0,0.00027397,7]
[388354786,1759117840233,-152.114971,0.00027397,7]
[388354787,1759117840243,-481.47267589,0.00027397,7]
[388354788,1759117840252,-480.0,0.00027397,7]
[388354789,1759117840262,-151.0,0.00027397,7]
[388354790,1759117840272,-618.57,0.00027397,7]
[388354791,1759117840282,-151.0,0.00027397,7]
[388354792,1759117840293,-151.0,0.00027397,7]
[388354793,1759117840302,-152.127292,0.00027397,7]
[388354794,1759117840311,-480.0,0.00027397,7]
[388354795,1759117840322,-151.0,0.00027397,7]
[388354796,1759117840331,-154.994451,0.00027397,7]
[388354797,1759117840341,-480.0,0.00027397,7]
[388354798,1759117840350,-151.0,0.00027397,7]
[388354799,1759117840358,-532.30099239,0.00027397,7]
[388354800,1759117840368,-480.0,0.00027397,7]
[388354801,1759117840377,-511.34,0.00027397,7]
[388354802,1759117840385,-480.0,0.00027397,7]
[388354803,1759117840394,-739.37,0.00027397,7]
[388354804,1759117840403,-480.0,0.00027397,7]
[388354805,1759117840414,-480.0,0.00027397,7]
[388354806,1759117840424,-480.0,0.00027397,7]
[388354807,1759117840433,-549.75,0.00027397,7]
[388354808,1759117840442,-480.0,0.00027397,7]
[388354809,1759117840451,-480.0,0.00027397,7]
[388354810,1759117840460,-480.0,0.00027397,7]
[388354811,1759117840469,-780.28,0.00027397,7]
[388354812,1759117840478,-151.0,0.00027397,7]
[388354813,1759117840487,-151.0,0.00027397,7]
[388354814,1759117840496,-387.84086418,0.00027397,7]
[388354815,1759117840504,-151.0,0.00027397,7]
[388354816,1759117840513,-683.76,0.00027397,7]
[388354817,1759117840522,-662.13,0.00027397,7]
[388354818,1759117840532,-480.0,0.00027397,7]
[388354819,1759117840541,-480.0,0.00027397,7]
[388354820,1759117840551,-480.0,0.00027397,7]
[388354821,1759117840561,-480.74022554,0.00027397,7]
[388354822,1759117840570,-524.22,0.00027397,7]
[388354823,1759117840580,-824.15,0.00027397,7]
[388354824,1759117840589,-151.0,0.00027397,7]
[388354825,1759117840599,-151.0,0.00027397,7]
[388354826,1759117840609,-453.39304695,0.00027397,7]
[388354827,1759117840618,-480.0,0.00027397,7]
[388354828,1759117840628,-480.0,0.00027397,7]
[388354829,1759117840638,-491.38,0.00027397,7]
[388354830,1759117840648,-480.0,0.00027397,7]
[388354831,1759117840657,-485.87,0.00027397,7]
[388354832,1759117840667,-916.24,0.00027397,7]
[388354833,1759117840677,-480.0,0.00027397,7]
[388354834,1759117840686,-480.0,0.00027397,7]
[388354835,1759117840695,-480.0,0.00027397,7]
[388354836,1759117840705,-520.0,0.00027397,3]
[388354837,1759117840715,-480.0,0.00027397,7]
[388354838,1759117840724,-480.0,0.00027397,7]
[388354839,1759117840734,-151.0,0.00027397,7]
[388354840,1759117840743,-151.0,0.00027397,7]
[388354841,1759117840753,-151.0,0.00027397,7]
[388354842,1759117840763,-151.0,0.00027397,7]
[388354843,1759117840771,-768.16,0.00027397,7]
[388354844,1759117840781,-726.44,0.00027397,7]
[388354845,1759117840790,-480.0,0.00027397,7]
[388354846,1759117840800,-480.0,0.00027397,7]
[388354847,1759117840809,-1080.81,0.00027397,7]
[388354848,1759117840818,-480.0,0.00027397,7]
[388354849,1759117840827,-996.54,0.00027397,7]
[388354850,1759117840837,-607.97,0.00027397,7]
[388354851,1759117840845,-480.0,0.00027397,7]
[388354852,1759117840854,-480.0,0.00027397,7]
[388354853,1759117840863,-2533.88,0.00027397,7]
[388354854,1759117840873,-480.0,0.00027397,7]
[388354855,1759117840882,-151.0,0.00027397,7]
[388354856,1759117840891,-151.0,0.00027397,7]